fUSD/lending_fUSD_20260309
["ID","MTS","AMOUNT","RATE_DAILY","PERIOD"]
[408006240,1773015042332,-350.0,0.00019601,2]
[408006241,1773015042341,-500.0,0.00019601,2]
[408006242,1773015042351,-200.0,0.00019601,2]
[408006243,1773015042361,-423.88791799,0.00019601,2]
[408006244,1773015042371,-10405.19778399,0.00019602,2]
[408006245,1773015042381,-847.4,0.00019606,2]
[408006246,1773015042391,-172.82949155,0.00019609,2]
[408006247,1773015042400,-1390.28858434,0.00019609,2]
[408006248,1773015042410,-160.0,0.00019609,2]
[408006249,1773015042420,-500.0,0.00019656,2]
[408006250,1773015042430,-500.0,0.00019656,2]
[408006251,1773015042439,-150.0,0.00019656,2]
[408006252,1773015042449,-164.52367001,0.00019656,2]
[408006253,1773015042459,-258.62446348,0.00019656,2]
[408006254,1773015042469,-500.0,0.00019656,2]
[408006255,1773015042479,-200.0,0.00019656,2]
[408006256,1773015042489,-150.0,0.00019656,2]
[408006257,1773015042500,-500.0,0.00019656,2]
[408006258,1773015042509,-847.0,0.0001968,2]
[408006259,1773015042521,-157.46790549,0.0001968,2]
[408006260,1773015042568,-2647.53209451,0.0001968,2]
[408006261,1773015042579,-845.03970775,0.000197,7]
[408006262,1773015042749,-594.30869475,0.00018601,2]
[408006263,1773015042762,-2460.0,0.0001949,2]
[408006264,1773015042772,-2754.96029225,0.000197,7]
[408006265,1773015042997,-2000.0,0.000197,2]
[408006266,1773015043007,-2000.0,0.000197,2]
[408006267,1773015043018,-847.4,0.00019705,2]
[408006268,1773015043028,-500.0,0.00019711,2]
[408006269,1773015043037,-500.0,0.00019711,2]
[408006270,1773015043046,-212.18393224,0.00019711,2]
[408006272,1773015043055,-500.0,0.00019711,2]
[408006274,1773015043064,-150.0,0.00019711,2]
[408006276,1773015043073,-500.0,0.00019711,2]
[408006278,1773015043083,-154.34344167,0.00019711,2]
[408006280,1773015043092,-150.0,0.00019711,2]
[408006281,1773015043101,-500.0,0.00019711,2]
[408006282,1773015043110,-150.0,0.00019711,2]
[408006283,1773015043119,-500.0,0.00019711,2]
[408006284,1773015043129,-155.44184075,0.00019711,2]
[408006285,1773015043138,-500.0,0.00019711,2]
[408006286,1773015043147,-214.72781122,0.00019711,2]
[408006287,1773015043158,-150.0,0.00019711,2]
[408006288,1773015043167,-150.0,0.00019711,2]
[408006289,1773015043177,-500.0,0.00019711,2]
[408006290,1773015043187,-500.0,0.00019711,2]
[408006291,1773015043196,-250.0,0.00019726,2]
[408006293,1773015043206,-1000.0,0.00019726,2]
[408006294,1773015043216,-150.0,0.00019737,2]
[408006295,1773015043228,-165.0,0.00019743,2]
[408006296,1773015043238,-781.25,0.00019745,2]
[408006297,1773015043247,-353.0,0.00019746,2]
[408006298,1773015043257,-150.0,0.00019753,2]
[408006299,1773015043267,-500.0,0.00019766,2]
[408006300,1773015043277,-231.1610732,0.00019766,2]
[408006301,1773015043286,-500.0,0.00019766,2]
[408006302,1773015043295,-500.0,0.00019766,2]
[408006303,1773015043304,-150.0,0.00019766,2]
[408006304,1773015043313,-500.0,0.00019766,2]
[408006305,1773015043322,-150.0,0.00019766,2]
[408006306,1773015043331,-534.47576362,0.00019766,2]
[408006307,1773015043340,-500.0,0.00019766,2]
[408006308,1773015043350,-150.0,0.00019766,2]
[408006309,1773015043360,-150.0,0.00019766,2]
[408006310,1773015043370,-500.0,0.00019766,2]
[408006311,1773015043379,-644.11265572,0.00019766,2]
[408006312,1773015043388,-1500.0,0.00019768,2]
[408006313,1773015043397,-7192.359,0.00019784,2]
[408006314,1773015043407,-218.115,0.00019784,2]
[408006315,1773015043417,-4100.0,0.000198,7]
[408006316,1773015043426,-877.24,0.000198,2]
[408006317,1773015043435,-2000.0,0.000198,2]
[408006318,1773015043444,-2000.0,0.000198,2]
[408006319,1773015043453,-2000.0,0.000198,2]
[408006320,1773015043462,-2000.0,0.000198,2]
[408006321,1773015043472,-2000.0,0.000198,2]
[408006322,1773015043481,-847.4,0.00019803,2]
[408006323,1773015043490,-665.0,0.00019816,2]
[408006324,1773015043499,-150.0,0.00019816,2]
[408006325,1773015043509,-150.0,0.00019816,2]
[408006326,1773015043521,-150.0,0.00019816,2]
[408006327,1773015043530,-150.0,0.00019816,2]
[408006328,1773015043539,-182.0,0.00019816,2]
[408006329,1773015043549,-500.0,0.00019821,2]
[408006330,1773015043558,-184.8007681,0.00019821,2]
[408006331,1773015043567,-150.0,0.00019821,2]
[408006332,1773015043577,-300.0,0.00019821,2]
[408006333,1773015043586,-150.0,0.00019821,2]
[408006335,1773015043595,-500.0,0.00019821,2]
[408006337,1773015043604,-165.95964201,0.00019821,2]
[408006339,1773015043615,-150.0,0.00019821,2]
[408006340,1773015043624,-353.48441563,0.00019821,2]
[408006341,1773015043633,-151.0,0.00019821,2]
[408006342,1773015043642,-151.0,0.00019821,2]
[408006343,1773015043651,-251.241059,0.00019821,2]
[408006344,1773015043660,-581.933344,0.00019821,2]
[408006345,1773015043670,-581.933344,0.00019821,2]
[408006346,1773015043681,-581.933344,0.00019821,2]
[408006347,1773015043691,-581.933344,0.00019821,2]
[408006348,1773015043700,-200.0,0.0001984,2]
[408006349,1773015043709,-500.0,0.00019875,2]
[408006350,1773015043719,-276.75692552,0.00019875,2]
[408006351,1773015043730,-150.0,0.00019875,2]
[408006352,1773015043739,-500.0,0.00019875,2]
[408006353,1773015043749,-250.35736989,0.00019875,2]
[408006354,1773015043760,-25000.0,0.00019891,3]
[408006355,1773015043770,-1318.85,0.00019896,2]
[408006356,1773015043779,-2000.0,0.000199,2]
[408006357,1773015043788,-2000.0,0.000199,2]
[408006358,1773015043797,-2000.0,0.000199,2]
[408006359,1773015043806,-2000.0,0.000199,2]
[408006360,1773015043815,-25000.0,0.000199,3]
[408006361,1773015043824,-172.82949155,0.000199,3]
[408006362,1773015043834,-2000.0,0.000199,2]
[408006363,1773015043843,-2000.0,0.000199,2]
[408006364,1773015043852,-24422.82791355,0.000199,3]
[408006365,1773015043861,-10405.19778399,0.000199,2]
[408006366,1773015043871,-634.35358399,0.000199,2]
[408006367,1773015043879,-220.17920537,0.000199,2]
[408006368,1773015043888,-1501.56233538,0.000199,2]
[408006369,1773015043899,-2761.0,0.000199,2]
[408006370,1773015043908,-847.4,0.00019902,2]
[408006371,1773015043917,-1000.0,0.00019921,2]
[408006372,1773015043926,-1000.0,0.00019921,2]
[408006373,1773015043935,-1000.0,0.00019922,2]
[408006374,1773015043944,-1000.0,0.00019922,2]
[408006375,1773015043954,-1000.0,0.00019922,2]
[408006376,1773015043963,-1000.0,0.00019922,2]
[408006377,1773015043972,-1000.0,0.00019922,2]
[408006378,1773015043981,-1000.0,0.00019922,2]
[408006379,1773015043990,-1000.0,0.00019922,2]
[408006380,1773015044000,-1000.0,0.00019922,2]
[408006381,1773015044010,-1000.0,0.00019922,2]
[408006382,1773015044020,-500.0,0.0001993,2]
[408006383,1773015044030,-250.0,0.0001993,2]
[408006384,1773015044039,-683.0,0.00019933,2]
[408006385,1773015044048,-604.0,0.00019944,2]
[408006386,1773015044058,-150.0,0.00019944,2]
[408006387,1773015044067,-150.0,0.00019944,2]
[408006388,1773015044077,-150.0,0.00019944,2]
[408006389,1773015044087,-222.0,0.00019944,2]
[408006390,1773015044097,-984.10353533,0.0001995,15]
[408006391,1773015044107,-300.0,0.00019964,2]
[408006392,1773015044117,-150.0,0.00019973,2]
[408006393,1773015044126,-119258.6679168,0.0001998,2]
[408006394,1773015044135,-151.0,0.0001998,2]
[408006395,1773015044144,-151.0,0.0001998,2]
[408006396,1773015044153,-500.0,0.00019985,2]
[408006397,1773015044162,-18905.1829953,0.00019988,2]
[408006398,1773015044172,-150.0,0.0001999,2]
[408006399,1773015044182,-150.0,0.0001999,2]
[408006400,1773015044191,-150.0,0.0001999,2]
[408006401,1773015044201,-150.0,0.0001999,2]
[408006402,1773015044211,-150.0,0.0001999,2]
[408006403,1773015044221,-150.0,0.0001999,2]
[408006404,1773015044230,-150.0,0.0001999,2]
[408006405,1773015044243,-219.31916013,0.0001999,2]
[408006406,1773015044264,-30000.0,0.00019994,2]
[408006407,1773015044282,-5553.24286376,0.00019994,3]
[408006410,1773015044300,-257086.9481376,0.00019994,2]
[408006412,1773015044317,-14460.6959401,0.00019994,2]
[408006413,1773015044332,-10324.1719782,0.00019994,2]
[408006414,1773015044350,-151.0,0.00019994,2]
[408006415,1773015044368,-151.0,0.00019994,2]
[408006416,1773015044387,-581.933344,0.00019994,2]
[408006417,1773015044405,-581.933344,0.00019994,2]
[408006418,1773015044422,-581.933344,0.00019994,2]
[408006419,1773015044437,-581.933344,0.00019994,2]
[408006420,1773015044451,-151.0,0.00019994,2]
[408006421,1773015044470,-151.0,0.00019994,2]
[408006422,1773015044484,-151.0,0.00019994,2]
[408006423,1773015044507,-292.866338,0.00019994,2]
[408006424,1773015044521,-151.0,0.00019994,2]
[408006425,1773015044534,-292.866338,0.00019994,2]
[408006426,1773015044548,-292.866338,0.00019994,2]
[408006427,1773015044569,-292.866338,0.00019994,2]
[408006428,1773015044583,-151.0,0.00019997,2]
[408006429,1773015044597,-176.19516052,0.0002,2]
[408006430,1773015044611,-1469160.84132483,0.0002,2]
[408006431,1773015044626,-6427086.97867983,0.0002,2]
[408006436,1773015046244,-4863.27540378,0.0002,2]
[408006437,1773015046343,-350489.64429367,0.0002,2]
[408006438,1773015046355,-644.20590704,0.0002,2]
[408006441,1773015046528,-174.84687797,0.00016002,2]
[408006442,1773015046538,-174.84687797,0.00016782,2]
[408006443,1773015046547,-174.84687797,0.00017561,2]
[408006444,1773015046557,-174.84687797,0.00018341,2]
[408006445,1773015046566,-174.84687797,0.0001912,2]
[408006446,1773015046575,-174.84687797,0.000199,2]
[408006447,1773015046584,-3257.90621712,0.0002,2]
[408006449,1773015046595,-567.95672462,0.0002,2]
[408006452,1773015046621,-900.05641542,0.0002,2]
[408006453,1773015046635,-1128785.74209449,0.0002,2]
[408006454,1773015046721,-594.30869475,0.0001925,2]
[408006455,1773015046732,-3892.40657025,0.0002,2]
[408006456,1773015046756,-19760.0000004,0.0002,2]
[408006463,1773015141957,500.0,9e-05,2]
[408006464,1773015142464,724.90460926,9e-05,2]
[408006465,1773015144257,500.0,9e-05,2]
[408006466,1773015144734,500.0,9e-05,2]
[408006467,1773015144881,500.0,9e-05,2]
[408006468,1773015146118,510.87417766,9e-05,2]
[408006469,1773015146165,800.0,9e-05,2]
[408006470,1773015148404,781.83967209,9e-05,2]
[408006471,1773015149174,500.0,9e-05,2]
[408006472,1773015149667,500.0,9e-05,2]
[408006473,1773015149745,500.0,9e-05,2]
[408006474,1773015150141,884.45317877,9e-05,2]
[408006475,1773015150246,503.46804252,9e-05,2]
[408006479,1773015152626,500.0,9e-05,2]
[408006480,1773015153098,972.09263389,9e-05,2]
[408006481,1773015155342,500.0,9e-05,2]
[408006482,1773015155834,500.0,9e-05,2]
[408006483,1773015157146,500.0,9e-05,2]
[408006484,1773015157209,500.0,9e-05,2]
[408006485,1773015163620,250.0,0.0001217,2]
[408006486,1773015205420,250.0,0.000126,2]
[408006489,1773015307527,175.0,0.00014,2]
[408006490,1773015321333,160.44,0.00014,2]
[408006491,1773015438257,500.0,9e-05,2]
[408006492,1773015439090,500.0,9e-05,2]
[408006493,1773015439579,512.43213366,9e-05,2]
[408006494,1773015447943,500.0,9e-05,2]
[408006495,1773015448406,800.0,9e-05,2]
[408006496,1773015448779,975.55067641,9e-05,2]
[408006497,1773015452591,500.0,9e-05,2]
[408006498,1773015452712,500.0,9e-05,2]
[408006499,1773015453089,777.66999572,9e-05,2]
[408006500,1773015463347,500.0,9e-05,2]
[408006501,1773015466208,500.0,9e-05,2]
[408006502,1773015466687,500.0,9e-05,2]
[408006503,1773015467798,98.91719421,9e-05,2]
[408006504,1773015467820,401.08280579,9e-05,2]
[408006505,1773015494038,161.52,0.00012304,2]
[408006507,1773015551123,162.04,0.00014,2]
[408006508,1773015741215,500.0,9e-05,2]
[408006509,1773015748107,500.0,9e-05,2]
[408006510,1773015796035,158.6,0.00014,2]
[408006511,1773015818135,-158.6,0.00014709,2]
[408006512,1773015818163,-272.0,0.0001478,2]
[408006513,1773015818192,-184.96377306,0.00014899,2]
[408006514,1773015818220,-600.0,0.00014937,2]
[408006515,1773015818255,-600.0,0.00014974,2]
[408006516,1773015818284,-282.42,0.00014975,2]
[408006517,1773015818652,-150.0,0.00014999,2]
[408006518,1773015818682,-300.0,0.00014999,2]
[408006519,1773015818713,-1200.0,0.00014999,2]
[408006520,1773015818741,-500.0,0.00015,2]
[408006521,1773015844763,182.0,0.00014,2]
[408006522,1773015898249,1569.41,0.0002,120]
[408006523,1773016032629,162.67,0.00014,2]
[408006524,1773016037574,813.56366554,9e-05,2]
[408006525,1773016043978,900.0,9e-05,2]
[408006526,1773016044475,900.0,9e-05,2]
[408006527,1773016044980,900.0,9e-05,2]
[408006528,1773016045514,900.0,9e-05,2]
[408006529,1773016046005,900.0,9e-05,2]
[408006530,1773016046746,900.0,9e-05,2]
[408006531,1773016046984,900.0,9e-05,2]
[408006532,1773016047471,900.0,9e-05,2]
[408006533,1773016047944,900.0,9e-05,2]
[408006534,1773016048164,500.0,9e-05,2]
[408006535,1773016048392,241.77633446,9e-05,2]
[408006536,1773016048423,500.0,9e-05,2]
[408006537,1773016048453,158.22366554,9e-05,2]
[408006538,1773016048651,341.77633446,9e-05,2]
[408006539,1773016048678,158.22366554,9e-05,2]
[408006540,1773016048934,18.46633446,9e-05,2]
[408006541,1773016048961,500.0,9e-05,2]
[408006542,1773016048987,381.53366554,9e-05,2]
[408006543,1773016049415,900.0,9e-05,2]
[408006544,1773016049908,900.0,9e-05,2]
[408006545,1773016050185,513.28024639,9e-05,2]
[408006546,1773016050352,503.46804252,9e-05,2]
[408006547,1773016050425,1106.51772961,9e-05,2]
[408006548,1773016052293,500.0,9e-05,2]
[408006549,1773016052347,505.49393616,9e-05,2]
[408006550,1773016063975,-162.67,0.0001478,2]
[408006551,1773016064008,-1200.0,0.00014999,2]
[408006552,1773016064039,-300.0,0.00014999,2]
[408006553,1773016064071,-150.0,0.00014999,2]
[408006554,1773016064099,-322.09,0.00015,2]
[408006555,1773016081235,300.0,0.00014999,2]
[408006556,1773016148072,184.96377306,0.000149,2]
[408006557,1773016201180,1200.0,0.00014999,2]
[408006558,1773016201962,150.0,0.00014999,2]
[408006559,1773016203846,300.0,0.00014999,2]
[408006560,1773016231081,-500.0,0.00015,30]
[408006561,1773016231110,-900.0,0.00015,30]
[408006562,1773016231138,-500.0,0.00015,30]
[408006563,1773016231167,-501.33439917,0.00015,30]
[408006565,1773016231198,-900.0,0.00015,30]
[408006567,1773016231228,-500.0,0.00015,30]
[408006568,1773016231257,-900.0,0.00015,30]
[408006570,1773016231287,-97.34120166,0.00015,30]
[408006587,1773016232639,-402.65879834,0.00015,30]
[408006588,1773016232649,-900.0,0.00015,30]
[408006589,1773016232658,-900.0,0.00015,30]
[408006590,1773016232668,-900.0,0.00015,30]
[408006591,1773016232677,-900.0,0.00015,30]
[408006592,1773016232686,-900.0,0.00015,30]
[408006593,1773016232696,-900.0,0.00015,30]
[408006594,1773016232706,-900.0,0.00015,30]
[408006595,1773016232716,-900.0,0.00015,30]
[408006596,1773016232725,-900.0,0.00015,30]
[408006597,1773016232735,-900.0,0.00015,30]
[408006598,1773016232744,-900.0,0.00015,30]
[408006599,1773016232753,-900.0,0.00015,30]
[408006600,1773016232763,-524.62574856,0.00015,30]
[408006601,1773016232772,-500.0,0.00015,30]
[408006602,1773016232781,-500.0,0.00015,30]
[408006603,1773016232791,-500.0,0.00015,30]
[408006604,1773016232800,-500.0,0.00015,30]
[408006605,1773016232809,-500.0,0.00015,30]
[408006606,1773016232818,-500.0,0.00015,30]
[408006607,1773016232827,-762.46089344,0.00015,30]
[408006608,1773016232836,-500.0,0.00015,30]
[408006609,1773016232846,-500.0,0.00015,30]
[408006610,1773016232855,-500.0,0.00015,30]
[408006611,1773016232865,-250.0,0.00015061,2]
[408006612,1773016232874,-3033.7947092,0.00015061,2]
[408006613,1773016232883,-10362.96,0.00015123,2]
[408006614,1773016232893,-276.0,0.00015123,2]
[408006615,1773016232902,-1500.0,0.00015199,2]
[408006616,1773016232911,-322.09,0.00015274,2]
[408006617,1773016232920,-161.52,0.0001538,2]
[408006618,1773016232929,-527.0,0.00015471,2]
[408006619,1773016232942,-1318.96,0.00015471,2]
[408006620,1773016232951,-322.10811415,0.00015548,2]
[408006621,1773016232960,-162.67,0.0001556,2]
[408006622,1773016232969,-2000.0,0.000156,5]
[408006623,1773016232984,-1200.0,0.000156,5]
[408006624,1773016233002,-184.96377306,0.000156,2]
[408006625,1773016233011,-500.0,0.000156,5]
[408006626,1773016233021,-1448.5564,0.00015671,2]
[408006627,1773016233034,-219.31916014,0.00015694,2]
[408006628,1773016233044,-173.62,0.00015694,2]
[408006629,1773016233053,-173.62,0.00015694,2]
[408006630,1773016233062,-173.62,0.00015694,2]
[408006631,1773016233075,-173.62,0.00015694,2]
[408006632,1773016233084,-499.03336123,0.00015699,2]
[408006633,1773016233094,-167.58,0.00015699,2]
[408006634,1773016233103,-218.115,0.000157,2]
[408006635,1773016233112,-7192.359,0.000157,2]
[408006636,1773016233122,-11288.26757805,0.000157,2]
[408006637,1773016233131,-4100.0,0.000157,5]
[408006638,1773016233140,-634.353584,0.000157,2]
[408006639,1773016233150,-2500.0,0.000157,5]
[408006640,1773016233159,-1000.0,0.000157,5]
[408006641,1773016233168,-10938.47441493,0.000157,2]
[408006642,1773016233177,-6069.65812096,0.000157,2]
[408006643,1773016233186,-220.17920538,0.000157,2]
[408006644,1773016233195,-151.0,0.00015701,2]
[408006645,1773016233204,-151.0,0.00015701,2]
[408006646,1773016233214,-500.0,0.00015703,2]
[408006647,1773016233224,-500.0,0.00015703,2]
[408006648,1773016233234,-500.0,0.00015703,2]
[408006649,1773016233244,-500.0,0.00015703,2]
[408006650,1773016233253,-500.0,0.00015703,2]
[408006651,1773016233263,-500.0,0.00015703,2]
[408006652,1773016233272,-500.0,0.00015703,2]
[408006653,1773016233282,-500.0,0.00015703,2]
[408006654,1773016233291,-500.0,0.00015703,2]
[408006655,1773016233300,-500.0,0.00015703,2]
[408006656,1773016233310,-500.0,0.00015703,2]
[408006657,1773016233320,-500.0,0.00015703,2]
[408006658,1773016233329,-500.0,0.00015703,2]
[408006659,1773016233341,-500.0,0.00015703,2]
[408006660,1773016233350,-500.0,0.00015703,2]
[408006661,1773016233359,-500.0,0.00015703,2]
[408006662,1773016233370,-500.0,0.00015703,2]
[408006663,1773016233379,-500.0,0.00015703,2]
[408006664,1773016233388,-500.0,0.00015703,2]
[408006665,1773016233397,-500.0,0.00015703,2]
[408006666,1773016233406,-500.0,0.00015703,2]
[408006667,1773016233415,-500.0,0.00015703,2]
[408006668,1773016233426,-500.0,0.00015703,2]
[408006669,1773016233436,-500.0,0.00015703,2]
[408006670,1773016233445,-500.0,0.00015703,2]
[408006671,1773016233455,-500.0,0.00015703,2]
[408006672,1773016233464,-500.0,0.00015703,2]
[408006673,1773016233474,-500.0,0.00015703,2]
[408006674,1773016233483,-500.0,0.00015703,2]
[408006675,1773016233493,-500.0,0.00015703,2]
[408006676,1773016233502,-500.0,0.00015703,2]
[408006677,1773016233513,-500.0,0.00015703,2]
[408006678,1773016233524,-500.0,0.00015703,2]
[408006679,1773016233534,-500.0,0.00015703,2]
[408006680,1773016233543,-500.0,0.00015703,2]
[408006681,1773016233552,-520.79047913,0.00015703,2]
[408006682,1773016233561,-500.0,0.00015703,2]
[408006683,1773016233571,-500.0,0.00015703,2]
[408006684,1773016233580,-500.0,0.00015703,2]
[408006685,1773016233589,-500.0,0.00015703,2]
[408006686,1773016233598,-500.0,0.00015703,2]
[408006687,1773016233607,-500.0,0.00015703,2]
[408006688,1773016233617,-500.0,0.00015703,2]
[408006689,1773016233626,-500.0,0.00015703,2]
[408006690,1773016233636,-500.0,0.00015703,2]
[408006691,1773016233646,-500.0,0.00015703,2]
[408006692,1773016233655,-500.0,0.00015703,2]
[408006693,1773016233664,-138275.76054724,0.00015704,2]
[408006694,1773016233677,-17930.41102753,0.00015704,2]
[408006695,1773016233688,-2113.449534,0.00015704,2]
[408006696,1773016234272,-500.0,0.00015703,2]
[408006697,1773016234306,-500.0,0.00015703,2]
[408006698,1773016234341,-500.0,0.00015703,2]
[408006699,1773016234375,-500.0,0.00015703,2]
[408006700,1773016234413,-453.56260482,0.00015703,2]
[408006701,1773016234448,-500.0,0.00015703,2]
[408006702,1773016234484,-500.0,0.00015703,2]
[408006703,1773016234519,-500.0,0.00015703,2]
[408006704,1773016234554,-500.0,0.00015703,2]
[408006705,1773016234587,-500.0,0.00015703,2]
[408006706,1773016234770,-500.0,0.00015703,2]
[408006707,1773016234803,-500.0,0.00015703,2]
[408006709,1773016237431,-346.22909034,0.00015704,2]
[408006710,1773016237461,-2151.13331692,0.00015704,2]
[408006711,1773016237476,-770307.32441147,0.00015704,2]
[408006712,1773016237570,-68184.07348353,0.00015704,2]
[408006719,1773016239966,-500.0,0.00015703,2]
[408006720,1773016239977,-500.0,0.00015703,2]
[408006721,1773016239990,-1500691.61858897,0.00015704,2]
[408006722,1773016240002,-2817.6444031,0.00015704,2]
[408006723,1773016240012,-500.0,0.00015733,2]
[408006724,1773016240022,-501.87803648,0.00015773,2]
[408006725,1773016240035,-6100.0,0.000158,5]
[408006726,1773016240044,-3800.0,0.000158,5]
[408006727,1773016240058,-1600.0,0.000158,5]
[408006728,1773016240068,-282.42,0.00015807,2]
[408006729,1773016240078,-8200.0,0.000159,5]
[408006730,1773016240088,-200.72181509,0.000159,2]
[408006731,1773016240097,-5000.0,0.000159,5]
[408006732,1773016240107,-2100.0,0.000159,5]
[408006733,1773016240119,-216.28694899,0.00016067,2]
[408006734,1773016240134,-255.0,0.00016124,2]
[408006735,1773016240143,-11288.26757801,0.00016167,2]
[408006736,1773016240153,-10938.47441489,0.00016167,2]
[408006737,1773016240162,-150.0,0.00016289,2]
[408006738,1773016240171,-6069.65812094,0.000163,2]
[408006739,1773016240181,-162.67,0.0001634,2]
[408006740,1773016240192,-167.58,0.00016347,2]
[408006741,1773016240202,-254.0,0.00016416,2]
[408006742,1773016240214,-600.0,0.00016499,2]
[408006744,1773016240224,-1680.0,0.00016499,2]
[408006746,1773016240234,-250.0,0.000165,2]
[408006747,1773016240243,-178.93204733,0.000165,2]
[408006749,1773016240255,-5000.0,0.000165,2]
[408006751,1773016240271,-500.0,0.000165,2]
[408006753,1773016240290,-195.0,0.000165,2]
[408006754,1773016240299,-195.0,0.000165,2]
[408006755,1773016240309,-193.88361188,0.000165,2]
[408006756,1773016240319,-305.05958288,0.000165,2]
[408006757,1773016240329,-2500.0,0.000165,2]
[408006758,1773016240339,-784.58149931,0.000165,2]
[408006759,1773016240348,-11288.26757801,0.00016633,2]
[408006760,1773016240358,-10938.47441489,0.00016633,2]
[408006761,1773016240368,-282.42,0.00016639,2]
[408006762,1773016240378,-5210.38398437,0.00016822,2]
[408006763,1773016240388,-6069.65812094,0.000169,2]
[408006764,1773016240398,-9999.99,0.00016922,2]
[408006765,1773016240408,-1411.44,0.00016922,2]
[408006766,1773016240417,-299.99,0.00016922,4]
[408006767,1773016240427,-9999.99,0.00016922,2]
[408006768,1773016240438,-9301.2,0.00016922,2]
[408006769,1773016240449,-150.99,0.00016922,2]
[408006770,1773016240459,-999.99,0.00016922,2]
[408006771,1773016240469,-7994.39,0.00016922,2]
[408006772,1773016240480,-312.09,0.00016922,2]
[408006773,1773016240490,-3016.29,0.00016922,2]
[408006774,1773016240500,-5320.96,0.00016922,2]
[408006775,1773016240510,-7795.89,0.00016922,2]
[408006776,1773016240519,-1476.49,0.00016922,2]
[408006777,1773016240529,-415.66,0.00016922,2]
[408006778,1773016240538,-430.25,0.00016922,2]
[408006779,1773016240548,-8730.64,0.00016922,2]
[408006780,1773016240559,-150.99,0.00016922,2]
[408006781,1773016240568,-167.58,0.00016995,2]
[408006782,1773016240578,-500.0,0.00016999,2]
[408006783,1773016240588,-503.0,0.00017,2]
[408006784,1773016240597,-11288.26757801,0.000171,2]
[408006785,1773016240607,-10938.47441489,0.000171,2]
[408006786,1773016240616,-162.67,0.0001712,2]
[408006787,1773016240626,-255.6,0.0001715,2]
[408006788,1773016240635,-165.24,0.00017216,2]
[408006789,1773016240644,-433.0,0.00017339,2]
[408006790,1773016240654,-282.42,0.0001747,2]
[408006791,1773016240663,-6069.65812094,0.000175,2]
[408006792,1773016240673,-11288.26757801,0.00017567,2]
[408006793,1773016240682,-10938.47441489,0.00017567,2]
[408006794,1773016240691,-167.58,0.00017643,2]
[408006795,1773016240701,-162.09306805,0.000177,2]
[408006796,1773016240710,-500.0,0.000178,2]
[408006797,1773016240720,-442.99956491,0.000178,2]
[408006798,1773016240730,-500.0,0.000178,2]
[408006799,1773016240739,-634.35358399,0.000178,2]
[408006800,1773016240749,-162.67,0.000179,2]
[408006801,1773016240759,-500.0,0.00017979,2]
[408006802,1773016240769,-500.0,0.00017979,2]
[408006803,1773016240778,-200.0,0.00018,2]